fUST/lending_fUST_20240920
["ID","MTS","AMOUNT","RATE_DAILY","PERIOD"]
[338628186,1726812946882,197.15480101,0.00016438,2]
[338628187,1726812947087,500.0,0.00016438,2]
[338628188,1726812947632,555.93,0.00016438,2]
[338628189,1726812947805,781.19,0.00016438,2]
[338628190,1726812948742,500.0,0.00016438,2]
[338628191,1726812951887,500.0,0.00016438,2]
[338628192,1726812952489,851.93,0.00016438,2]
[338628193,1726812953404,865.68790742,0.00016499,2]
[338628194,1726812953689,670.59,0.00016438,2]
[338628196,1726812956139,500.0,0.00016438,2]
[338628197,1726812959857,500.0,0.00016438,2]
[338628198,1726812960525,500.0,0.00016438,2]
[338628199,1726812962366,400.96,0.00016438,2]
[338628200,1726812962780,500.0,0.00016438,2]
[338628201,1726812962912,500.0,0.00016438,2]
[338628204,1726812988656,-878.02,0.00016438,2]
[338628205,1726812988681,-500.0,0.00016438,2]
[338628206,1726812988706,-559.14,0.00016438,2]
[338628207,1726812988730,-579.23,0.00016438,2]
[338628208,1726812988755,-500.0,0.00016438,2]
[338628209,1726812988782,-550.32285136,0.00016438,2]
[338628210,1726812988805,-1124.11,0.00016438,2]
[338628211,1726812988828,-500.0,0.00016438,2]
[338628212,1726812988857,-500.0,0.00016438,2]
[338628213,1726812988880,-732.5,0.00016438,2]
[338628214,1726812988902,-500.0,0.00016438,2]
[338628215,1726812988925,-500.0,0.00016438,2]
[338628216,1726812988948,-500.0,0.00016438,2]
[338628217,1726812988972,-506.6203096,0.00016438,2]
[338628218,1726812988995,-500.0,0.00016438,2]
[338628219,1726812989017,-500.0,0.00016438,2]
[338628220,1726812989040,-500.0,0.00016438,2]
[338628221,1726812989063,-161.49169526,0.00016438,2]
[338628223,1726813044899,500.0,0.00014013,2]
[338628224,1726813049721,500.0,0.00014013,2]
[338628225,1726813050049,500.0,0.00014013,2]
[338628226,1726813050418,500.0,0.00014013,2]
[338628227,1726813050759,500.0,0.00014013,2]
[338628229,1726813053216,500.0,0.00014013,2]
[338628230,1726813053585,500.0,0.00014013,2]
[338628231,1726813053925,500.0,0.00014013,2]
[338628232,1726813054248,500.0,0.00014013,2]
[338628233,1726813066618,-1924.82876158,0.00016338,2]
[338628234,1726813066641,-300.0,0.00016437,2]
[338628235,1726813066664,-300.0,0.00016437,2]
[338628236,1726813066687,-395.69830474,0.00016438,2]
[338628237,1726813066710,-526.02467085,0.00016438,2]
[338628238,1726813066732,-369.0961199,0.00016438,2]
[338628239,1726813066755,-500.0,0.00016438,2]
[338628240,1726813066777,-500.0,0.00016438,2]
[338628241,1726813066804,-869.57,0.00016438,2]
[338628242,1726813066828,-500.0,0.00016438,2]
[338628243,1726813066851,-500.0,0.00016438,2]
[338628244,1726813066876,-500.0,0.00016438,2]
[338628245,1726813066899,-500.0,0.00016438,2]
[338628246,1726813066923,-500.0,0.00016438,2]
[338628247,1726813066946,-754.2,0.00016438,2]
[338628248,1726813066969,-630.11378004,0.00016438,2]
[338628249,1726813066993,-500.0,0.00016438,2]
[338628250,1726813067015,-500.0,0.00016438,2]
[338628251,1726813067039,-249.909134,0.00016438,2]
[338628252,1726813067064,-592.2125189,0.00016438,2]
[338628253,1726813067089,-249.909134,0.00016438,2]
[338628254,1726813067114,-249.909134,0.00016438,2]
[338628255,1726813067138,-249.909134,0.00016438,2]
[338628256,1726813067161,-500.0,0.00016438,2]
[338628257,1726813067185,-249.909134,0.00016438,2]
[338628258,1726813067211,-249.909134,0.00016438,2]
[338628259,1726813067236,-249.909134,0.00016438,2]
[338628260,1726813067262,-249.909134,0.00016438,2]
[338628261,1726813067286,-500.0,0.00016438,2]
[338628262,1726813067310,-249.909134,0.00016438,2]
[338628263,1726813067335,-500.0,0.00016438,2]
[338628264,1726813067361,-249.909134,0.00016438,2]
[338628265,1726813067385,-534.53592009,0.00016438,2]
[338628266,1726813067409,-249.909134,0.00016438,2]
[338628267,1726813067434,-801.656623,0.00016438,2]
[338628268,1726813067458,-249.909134,0.00016438,2]
[338628269,1726813067487,-801.656623,0.00016438,2]
[338628270,1726813067511,-801.656623,0.00016438,2]
[338628271,1726813067534,-249.909134,0.00016438,2]
[338628272,1726813067559,-801.656623,0.00016438,2]
[338628273,1726813067581,-685.79,0.00016438,2]
[338628274,1726813067604,-249.909134,0.00016438,2]
[338628275,1726813067627,-249.909134,0.00016438,2]
[338628276,1726813067650,-801.656623,0.00016438,2]
[338628277,1726813067675,-249.909134,0.00016438,2]
[338628278,1726813067700,-249.909134,0.00016438,2]
[338628279,1726813067726,-801.656623,0.00016438,2]
[338628280,1726813067749,-249.909134,0.00016438,2]
[338628281,1726813067772,-801.656623,0.00016438,2]
[338628282,1726813067795,-614.08,0.00016438,2]
[338628283,1726813067818,-801.656623,0.00016438,2]
[338628284,1726813067843,-801.656623,0.00016438,2]
[338628285,1726813067866,-801.656623,0.00016438,2]
[338628286,1726813067893,-801.656623,0.00016438,2]
[338628287,1726813067919,-500.0,0.00016438,2]
[338628288,1726813067944,-801.656623,0.00016438,2]
[338628289,1726813067968,-500.0,0.00016438,2]
[338628290,1726813067994,-801.656623,0.00016438,2]
[338628291,1726813068019,-801.656623,0.00016438,2]
[338628292,1726813068250,-801.656623,0.00016438,2]
[338628293,1726813068283,-500.0,0.00016438,2]
[338628294,1726813068312,-801.656623,0.00016438,2]
[338628295,1726813068341,-500.0,0.00016438,2]
[338628296,1726813068368,-153.39650664,0.00016438,2]
[338628297,1726813068393,-500.0,0.00016438,2]
[338628298,1726813068418,-500.0,0.00016438,2]
[338628299,1726813068443,-500.0,0.00016438,2]
[338628300,1726813068473,-521.3,0.00016438,2]
[338628301,1726813068498,-472.07,0.00016438,2]
[338628302,1726813068524,-500.0,0.00016438,2]
[338628303,1726813068550,-512.37431689,0.00016438,2]
[338628304,1726813068575,-500.0,0.00016438,2]
[338628305,1726813068601,-503.8766295,0.00016438,2]
[338628306,1726813068626,-500.0,0.00016438,2]
[338628307,1726813068651,-500.0,0.00016438,2]
[338628308,1726813068687,-501.95743209,0.00016438,2]
[338628309,1726813068710,-218.68,0.00016438,2]
[338628310,1726813068733,-500.0,0.00016438,2]
[338628311,1726813068758,-500.82282994,0.00016438,2]
[338628312,1726813068782,-500.0,0.00016438,2]
[338628313,1726813068806,-500.0,0.00016438,2]
[338628314,1726813068832,-500.0,0.00016438,2]
[338628315,1726813068856,-154.271371,0.00016438,2]
[338628316,1726813068881,-154.271371,0.00016438,2]
[338628317,1726813068907,-500.24344638,0.00016438,2]
[338628318,1726813068940,-154.271371,0.00016438,2]
[338628319,1726813068965,-154.271371,0.00016438,2]
[338628320,1726813068990,-500.0,0.00016438,2]
[338628321,1726813069014,-500.0,0.00016438,2]
[338628322,1726813069040,-154.271371,0.00016438,2]
[338628323,1726813069064,-154.271371,0.00016438,2]
[338628324,1726813069089,-154.271371,0.00016438,2]
[338628325,1726813069113,-154.271371,0.00016438,2]
[338628326,1726813069138,-154.271371,0.00016438,2]
[338628327,1726813069164,-154.271371,0.00016438,2]
[338628328,1726813069189,-1117.08,0.00016438,2]
[338628329,1726813069213,-154.271371,0.00016438,2]
[338628330,1726813069237,-154.271371,0.00016438,2]
[338628331,1726813069262,-154.271371,0.00016438,2]
[338628332,1726813069286,-500.0,0.00016438,2]
[338628333,1726813069309,-500.0,0.00016438,2]
[338628334,1726813069333,-154.271371,0.00016438,2]
[338628335,1726813069358,-154.271371,0.00016438,2]
[338628336,1726813069381,-154.271371,0.00016438,2]
[338628337,1726813069405,-500.0,0.00016438,2]
[338628338,1726813069433,-154.271371,0.00016438,2]
[338628339,1726813069457,-154.271371,0.00016438,2]
[338628340,1726813069485,-500.0,0.00016438,2]
[338628341,1726813069508,-500.0,0.00016438,2]
[338628342,1726813069533,-500.0,0.00016438,2]
[338628343,1726813069557,-721.40658951,0.00016499,2]
[338628344,1726813069581,-1000.0,0.00016592,2]
[338628345,1726813069606,-10082.64794,0.000166,2]
[338628346,1726813069632,-150.112233,0.000166,2]
[338628347,1726813069658,-150.112233,0.000166,2]
[338628348,1726813069684,-150.112233,0.000166,2]
[338628349,1726813069709,-154.88231,0.000166,2]
[338628350,1726813069735,-211.9615599,0.000166,2]
[338628351,1726813069758,-208.7923626,0.000166,2]
[338628352,1726813069782,-208.7923626,0.000166,2]
[338628353,1726813069807,-151.0,0.000166,2]
[338628354,1726813069831,-208.7923626,0.000166,2]
[338628355,1726813069856,-208.7923626,0.000166,2]
[338628356,1726813069881,-208.7923626,0.000166,2]
[338628357,1726813069906,-767.125994,0.000166,2]
[338628358,1726813069932,-767.125994,0.000166,2]
[338628359,1726813069956,-801.656623,0.000166,2]
[338628360,1726813069980,-801.656623,0.000166,2]
[338628361,1726813070004,-1501.98546622,0.00016612,2]
[338628362,1726813070031,-530.07,0.00016661,2]
[338628363,1726813070058,-500.0,0.00016661,2]
[338628364,1726813070083,-655.72515224,0.00016662,2]
[338628365,1726813070110,-58391.7358994,0.00016662,2]
[338628366,1726813070137,-151.0,0.00016672,2]
[338628367,1726813070163,-151.0,0.00016682,2]
[338628368,1726813070189,-655.72515224,0.00016682,2]
[338628369,1726813070216,-58391.7358994,0.00016682,2]
[338628370,1726813070244,-151.0,0.00016692,2]
[338628371,1726813070270,-279.960979,0.00016692,2]
[338628372,1726813070294,-151.0,0.00016692,2]
[338628373,1726813070319,-222.200814,0.00016692,2]
[338628374,1726813070346,-1000.0,0.00016692,2]
[338628375,1726813070373,-1000.0,0.00016692,2]
[338628376,1726813070401,-1000.0,0.00016692,2]
[338628377,1726813070427,-1000.0,0.00016692,2]
[338628378,1726813070453,-1000.0,0.00016692,2]
[338628379,1726813070481,-1000.0,0.00016692,2]
[338628380,1726813070507,-1000.0,0.00016692,2]
[338628381,1726813070534,-1000.0,0.00016692,2]
[338628382,1726813070562,-1000.0,0.00016692,2]
[338628383,1726813070589,-1000.0,0.00016692,2]
[338628384,1726813070617,-1000.0,0.00016692,2]
[338628385,1726813070641,-1000.0,0.00016692,2]
[338628386,1726813070667,-1000.0,0.00016692,2]
[338628387,1726813070693,-1000.0,0.00016692,2]
[338628388,1726813070719,-1000.0,0.00016692,2]
[338628389,1726813070745,-1000.0,0.00016692,2]
[338628390,1726813070769,-1000.0,0.00016692,2]
[338628391,1726813070794,-1000.0,0.00016692,2]
[338628392,1726813070818,-1000.0,0.00016692,2]
[338628393,1726813070844,-1000.0,0.00016692,2]
[338628394,1726813070868,-1000.0,0.00016692,2]
[338628395,1726813070893,-1000.0,0.00016692,2]
[338628396,1726813070919,-1000.0,0.00016692,2]
[338628397,1726813070945,-1000.0,0.00016692,2]
[338628398,1726813070970,-1000.0,0.00016692,2]
[338628399,1726813070996,-1000.0,0.00016692,2]
[338628400,1726813071023,-1000.0,0.00016692,2]
[338628401,1726813071047,-1000.0,0.00016692,2]
[338628402,1726813071071,-1000.0,0.00016692,2]
[338628403,1726813071095,-1000.0,0.00016692,2]
[338628404,1726813071120,-1000.0,0.00016692,2]
[338628405,1726813071145,-1000.0,0.00016692,2]
[338628406,1726813071172,-1000.0,0.00016692,2]
[338628407,1726813071198,-1000.0,0.00016692,2]
[338628408,1726813071224,-1000.0,0.00016692,2]
[338628409,1726813071249,-1000.0,0.00016692,2]
[338628410,1726813071274,-1000.0,0.00016692,2]
[338628411,1726813071301,-474.685088,0.00016692,2]
[338628412,1726813071325,-151.0,0.00016692,2]
[338628413,1726813071351,-247.859748,0.00016692,2]
[338628414,1726813071377,-247.859748,0.00016692,2]
[338628415,1726813071401,-151.0,0.00016692,2]
[338628416,1726813071427,-151.0,0.00016692,2]
[338628417,1726813071450,-151.0,0.00016692,2]
[338628418,1726813071478,-151.0,0.00016692,2]
[338628419,1726813071507,-600.923423,0.00016692,2]
[338628420,1726813071535,-600.923423,0.00016692,2]
[338628421,1726813071728,-345.981531,0.00016692,2]
[338628422,1726813071754,-1864.674522,0.00016692,2]
[338628423,1726813071778,-345.981531,0.00016692,2]
[338628424,1726813071802,-1864.674522,0.00016692,2]
[338628425,1726813071824,-1083.548299,0.00016692,2]
[338628426,1726813071848,-1083.548299,0.00016692,2]
[338628427,1726813071872,-191.25028,0.00016692,2]
[338628428,1726813071896,-151.0,0.00016692,2]
[338628429,1726813071921,-151.0,0.00016692,2]
[338628430,1726813071945,-767.125994,0.00016692,2]
[338628431,1726813071969,-577.161605,0.00016692,2]
[338628432,1726813071994,-767.125984,0.00016692,2]
[338628433,1726813072018,-577.161597,0.00016692,2]
[338628434,1726813072041,-249.909134,0.00016692,2]
[338628435,1726813072064,-249.909134,0.00016692,2]
[338628436,1726813072087,-801.656623,0.00016692,2]
[338628437,1726813072111,-801.656621,0.00016692,2]
[338628438,1726813072135,-154.271371,0.00016692,2]
[338628439,1726813072158,-154.271376,0.00016692,2]
[338628440,1726813072187,-150.112233,0.000167,2]
[338628441,1726813072211,-150.112233,0.000167,2]
[338628442,1726813072235,-208.8377925,0.000167,2]
[338628443,1726813072258,-208.8377925,0.000167,2]
[338628444,1726813072467,500.0,0.00016438,2]
[338628445,1726813073265,500.0,0.00016438,2]
[338628446,1726813073750,601.17215793,0.00016499,2]
[338628447,1726813074977,433.05,0.00016438,2]
[338628448,1726813075646,500.0,0.00016438,2]
[338628449,1726813076214,298.73994133,0.00016438,2]
[338628450,1726813077084,500.0,0.00016438,2]
[338628451,1726813077530,500.0,0.00016438,2]
[338628452,1726813077796,500.5054268,0.00016438,2]
[338628453,1726813079719,501.59636202,0.00016438,2]
[338628454,1726813079858,500.0,0.00016438,2]
[338628455,1726813080449,500.0,0.00016438,2]
[338628456,1726813080752,300.0,0.000167,2]
[338628457,1726813080929,500.0,0.00016438,2]
[338628458,1726813081498,500.0,0.00016438,2]
[338628459,1726813081610,251.26840447,0.00016438,2]
[338628475,1726813122215,1724.3,0.00010959,2]
[338628478,1726813132699,1436.91,0.00010959,2]
[338628479,1726813143356,1197.43,0.00010959,2]
[338628481,1726813153718,997.86,0.00010959,2]
[338628482,1726813164242,831.55,0.00010959,2]
[338628483,1726813174967,692.95,0.00010959,2]
[338628484,1726813185453,577.46,0.00010959,2]
[338628486,1726813195961,481.22,0.00010959,2]
[338628487,1726813202776,-679.65182063,0.00016338,2]
[338628488,1726813202802,-300.0,0.00016437,2]
[338628489,1726813202829,-248.73159553,0.00016438,2]
[338628490,1726813202855,-500.0,0.00016438,2]
[338628491,1726813202878,-500.0,0.00016438,2]
[338628492,1726813202902,-500.0,0.00016438,2]
[338628493,1726813202930,-210.16951302,0.00016438,2]
[338628494,1726813202954,-500.0,0.00016438,2]
[338628495,1726813202979,-500.0,0.00016438,2]
[338628496,1726813203006,-500.92807811,0.00016438,2]
[338628497,1726813203031,-500.0,0.00016438,2]
[338628498,1726813203055,-500.0,0.00016438,2]
[338628499,1726813203083,-823.36,0.00016438,2]
[338628500,1726813203109,-500.0,0.00016438,2]
[338628501,1726813203136,-500.0,0.00016438,2]
[338628502,1726813203162,-500.0,0.00016438,2]
[338628503,1726813203187,-500.0,0.00016438,2]
[338628504,1726813203212,-500.0,0.00016438,2]
[338628505,1726813203237,-500.0,0.00016438,2]
[338628506,1726813203266,-500.0,0.00016438,2]
[338628507,1726813203292,-500.0,0.00016438,2]
[338628508,1726813203316,-500.0,0.00016438,2]
[338628509,1726813203340,-500.0,0.00016438,2]
[338628510,1726813203364,-500.0,0.00016438,2]
[338628511,1726813203392,-500.0,0.00016438,2]
[338628512,1726813203419,-622.81,0.00016438,2]
[338628513,1726813203444,-500.0,0.00016438,2]
[338628514,1726813203469,-500.0,0.00016438,2]
[338628515,1726813203494,-500.0,0.00016438,2]
[338628516,1726813203522,-680.43,0.00016438,2]
[338628517,1726813203548,-500.0,0.00016438,2]
[338628518,1726813203573,-602.83,0.00016438,2]
[338628519,1726813203598,-500.0,0.00016438,2]
[338628520,1726813203623,-500.0,0.00016438,2]
[338628521,1726813203648,-504.1,0.00016438,2]
[338628522,1726813203673,-500.0,0.00016438,2]
[338628523,1726813203698,-500.0,0.00016438,2]
[338628524,1726813203722,-500.0,0.00016438,2]
[338628525,1726813203747,-500.0,0.00016438,2]
[338628526,1726813203773,-500.0,0.00016438,2]
[338628527,1726813203797,-545.24,0.00016438,2]
[338628528,1726813203821,-967.7,0.00016438,2]
[338628529,1726813203845,-500.0,0.00016438,2]
[338628530,1726813203870,-1000.0,0.00016438,2]
[338628531,1726813203894,-1000.0,0.00016438,2]
[338628532,1726813203918,-500.21340804,0.00016438,2]
[338628533,1726813203941,-500.0,0.00016438,2]
[338628534,1726813203965,-500.0,0.00016438,2]
[338628535,1726813203989,-500.0,0.00016438,2]
[338628536,1726813204014,-500.0,0.00016438,2]
[338628537,1726813204037,-500.0,0.00016438,2]
[338628538,1726813204062,-500.0,0.00016438,2]
[338628539,1726813204087,-507.34259173,0.00016438,2]
[338628540,1726813204111,-500.0,0.00016438,2]
[338628541,1726813204135,-500.0,0.00016438,2]
[338628542,1726813204159,-500.0,0.00016438,2]
[338628543,1726813204184,-500.0,0.00016438,2]
[338628544,1726813204209,-500.0,0.00016438,2]
[338628545,1726813204234,-500.0,0.00016438,2]
[338628546,1726813204260,-500.0,0.00016438,2]
[338628547,1726813204285,-500.0,0.00016438,2]
[338628548,1726813204309,-500.0,0.00016438,2]
[338628549,1726813204333,-500.0,0.00016438,2]
[338628550,1726813204357,-500.0,0.00016438,2]
[338628551,1726813204382,-500.0,0.00016438,2]
[338628552,1726813204407,-500.0,0.00016438,2]
[338628553,1726813204432,-308.81050334,0.00016438,2]
[338628554,1726813204457,-500.0,0.00016438,2]
[338628555,1726813204481,-1000.0,0.00016582,2]
[338628556,1726813204636,300.0,0.00016437,2]
[338628557,1726813206713,401.02,0.00010959,2]
[338628558,1726813207017,1676.09,0.00016438,2]
[338628559,1726813207119,500.0,0.00016438,2]
[338628560,1726813212296,620.69713985,0.00016103,2]
[338628561,1726813213434,500.0,0.0001666,2]
[338628562,1726813217272,334.18,0.00010959,2]
[338628563,1726813217786,-59404.6,0.00016661,2]
[338628564,1726813217810,-8312.22,0.00016661,2]
[338628565,1726813217836,-500.0,0.00016661,2]
[338628566,1726813217861,-287.00780251,0.00016661,2]
[338628567,1726813217887,-500.0,0.00016661,2]
[338628568,1726813217913,-270.32,0.00016661,2]
[338628569,1726813217937,-500.0,0.00016661,2]
[338628570,1726813217960,-230.21,0.00016661,2]
[338628571,1726813217983,-40419.3722407,0.00016691,2]
[338628572,1726813218007,-12534.5095863,0.00016691,2]
[338628573,1726813218031,-36541.63572024,0.00016692,2]
[338628574,1726813227786,278.48,0.00010959,2]
[338628575,1726813238306,232.07,0.00010959,2]
[338628576,1726813248816,193.39,0.00010959,2]
[338628577,1726813259353,161.16,0.00010959,2]
[338628578,1726813269837,805.82,0.00010959,2]
[338628579,1726813346249,500.0,0.00014013,2]
[338628580,1726813346671,500.0,0.00014013,2]
[338628581,1726813352571,500.0,0.00014013,2]
[338628582,1726813352929,500.0,0.00014013,2]
[338628591,1726813590008,1000.0,0.0002,69]
[338628633,1726813832882,-1056.08216108,0.00015402,2]
[338628634,1726813832897,-149.31999912,0.00015402,2]
[338628635,1726813832909,-177.720491,0.00015412,2]
[338628636,1726813832918,-177.720491,0.00015573,2]
[338628637,1726813832928,-177.720491,0.00015733,2]
[338628638,1726813832937,-513.159394,0.00015865,2]
[338628639,1726813832947,-177.720491,0.00015894,2]
[338628640,1726813832958,-1000.0,0.00016,8]
[338628641,1726813832968,-177.720491,0.00016055,2]
[338628642,1726813832978,-208.7923626,0.000162,2]
[338628643,1726813832989,-177.720491,0.00016215,2]
[338628644,1726813833006,-300.0,0.00016337,2]
[338628645,1726813833016,-408.57412943,0.00016338,2]
[338628646,1726813833025,-7139.2745635,0.00016398,2]
[338628647,1726813833037,-408.5741294,0.00016402,2]
[338628648,1726813833047,-150.0,0.00016415,2]
[338628649,1726813833057,-14535.94076049,0.00016428,2]
[338628650,1726813833071,-1825.69496181,0.00016428,2]
[338628651,1726813833081,-4545.12801585,0.00016428,2]
[338628699,1726813850202,-1095.40129798,0.00016428,2]
[338628700,1726813850214,-505.25441222,0.00016437,2]
[338628701,1726813850225,-500.0,0.00016438,2]
[338628702,1726813850236,-500.0,0.00016438,2]
[338628703,1726813850247,-500.0,0.00016438,2]
[338628704,1726813850258,-500.0,0.00016438,2]
[338628705,1726813850267,-500.0,0.00016438,2]
[338628706,1726813850276,-234.16,0.00016438,2]
[338628707,1726813850285,-1193.72,0.00016438,2]
[338628708,1726813850294,-500.0,0.00016438,2]
[338628709,1726813850304,-511.94,0.00016438,2]
[338628710,1726813850313,-500.0,0.00016438,2]
[338628711,1726813850322,-500.0,0.00016438,2]
[338628712,1726813850331,-500.0,0.00016438,2]
[338628713,1726813850340,-500.0,0.00016438,2]
[338628714,1726813850350,-500.0,0.00016438,2]
[338628715,1726813850358,-473.9,0.00016438,2]
[338628716,1726813850368,-873.23,0.00016438,2]
[338628717,1726813850377,-419.21191535,0.00016438,2]
[338628718,1726813850387,-549.32,0.00016438,2]
[338628719,1726813850396,-500.0,0.00016438,2]
[338628720,1726813850405,-500.0,0.00016438,2]
[338628721,1726813850414,-657.37,0.00016438,2]
[338628722,1726813850423,-500.0,0.00016438,2]
[338628723,1726813850432,-500.0,0.00016438,2]
[338628724,1726813850442,-500.0,0.00016438,2]
[338628725,1726813850451,-501.08490612,0.00016438,2]
[338628726,1726813850460,-870.01,0.00016438,2]
[338628727,1726813850469,-500.0,0.00016438,2]
[338628728,1726813850478,-500.45577848,0.00016438,2]
[338628729,1726813850487,-500.0,0.00016438,2]
[338628730,1726813850497,-500.0,0.00016438,2]
[338628731,1726813850507,-500.0,0.00016438,2]
[338628732,1726813850516,-507.07735606,0.00016438,2]
[338628733,1726813850525,-500.0,0.00016438,2]
[338628734,1726813850534,-650.91,0.00016438,2]
[338628735,1726813850543,-500.0,0.00016438,2]
[338628736,1726813850552,-500.0,0.00016438,2]
[338628737,1726813850563,-446.70538196,0.00016438,2]
[338628738,1726813850572,-500.0,0.00016438,2]
[338628739,1726813850583,-500.0,0.00016438,2]
[338628740,1726813850594,-500.0,0.00016438,2]
[338628741,1726813850604,-500.0,0.00016438,2]
[338628742,1726813850615,-583.56,0.00016438,2]
[338628743,1726813850626,-500.0,0.00016438,2]
[338628744,1726813850637,-500.0,0.00016438,2]
[338628745,1726813850648,-500.0,0.00016438,2]
[338628746,1726813850658,-500.0,0.00016438,2]
[338628747,1726813850667,-500.0,0.00016438,2]
[338628748,1726813850677,-500.0,0.00016438,2]
[338628749,1726813850688,-500.0,0.00016438,2]
[338628750,1726813850698,-500.0,0.00016438,2]
[338628751,1726813850713,-500.0,0.00016438,2]
[338628752,1726813850724,-500.0,0.00016438,2]
[338628753,1726813850735,-500.0,0.00016438,2]
[338628754,1726813850746,-500.0,0.00016438,2]
[338628755,1726813850756,-500.0,0.00016438,2]
[338628756,1726813850766,-500.0,0.00016438,2]
[338628757,1726813850778,-500.0,0.00016438,2]
[338628758,1726813850789,-503.12962602,0.00016438,2]
[338628759,1726813850800,-500.0,0.00016438,2]
[338628760,1726813850809,-579.51,0.00016438,2]
[338628761,1726813850819,-830.74,0.00016438,2]
[338628762,1726813850828,-830.74,0.00016438,2]
[338628763,1726813850839,-830.74,0.00016438,2]
[338628764,1726813850851,-500.0,0.00016438,2]
[338628765,1726813850862,-830.74,0.00016438,2]
[338628766,1726813850872,-830.74,0.00016438,2]
[338628767,1726813850883,-830.74,0.00016438,2]
[338628768,1726813850893,-500.0,0.00016438,2]
[338628769,1726813850903,-500.0,0.00016438,2]
[338628770,1726813850914,-500.73140609,0.00016438,2]
[338628771,1726813850923,-500.0,0.00016438,2]
[338628772,1726813850934,-500.0,0.00016438,2]
[338628773,1726813850944,-500.0,0.00016438,2]
[338628774,1726813850954,-538.67894368,0.00016438,2]
[338628775,1726813850965,-500.0,0.00016438,2]
[338628776,1726813850977,-500.0,0.00016438,2]
[338628777,1726813850988,-500.0,0.00016438,2]
[338628778,1726813850999,-500.0,0.00016438,2]
[338628779,1726813851009,-500.0,0.00016438,2]
[338628780,1726813851019,-602.27,0.00016438,2]
[338628781,1726813851030,-500.0,0.00016438,2]
[338628782,1726813851039,-500.0,0.00016438,2]
[338628783,1726813851049,-566.11765676,0.00016438,2]
[338628784,1726813851061,-500.0,0.00016438,2]
[338628785,1726813851071,-500.0,0.00016438,2]
[338628786,1726813851081,-500.0,0.00016438,2]
[338628787,1726813851093,-500.0,0.00016438,2]
[338628788,1726813851103,-500.0,0.00016438,2]
[338628789,1726813851115,-500.0,0.00016438,2]
[338628790,1726813851124,-500.73074249,0.00016438,2]
[338628791,1726813851134,-620.43,0.00016438,2]
[338628792,1726813851145,-500.0,0.00016438,2]
[338628793,1726813851156,-500.0,0.00016438,2]
[338628794,1726813851167,-500.0,0.00016438,2]
[338628795,1726813851177,-500.0,0.00016438,2]
[338628796,1726813851186,-500.0,0.00016438,2]
[338628797,1726813851196,-500.0,0.00016438,2]
[338628798,1726813851207,-500.0,0.00016438,2]
[338628799,1726813851219,-500.0,0.00016438,2]
[338628800,1726813851230,-884.07692598,0.00016438,2]
[338628801,1726813851247,-13.08307402,0.00016438,2]
[338628802,1726813851258,-500.0,0.00016438,2]
[338628803,1726813851267,-500.0,0.00016438,2]
[338628804,1726813851278,-126.2349665,0.00016438,2]
[338628805,1726813851510,-732.3850335,0.00016438,2]